fUST/lending_fUST_20260226
["ID","MTS","AMOUNT","RATE_DAILY","PERIOD"]
[406651408,1772035209043,156.32,9.5e-05,2]
[406651409,1772035209794,156.32,0.000104,2]
[406651410,1772035243588,-300.0,0.00012657,2]
[406651411,1772035243614,-300.0,0.00012657,2]
[406651412,1772035243642,-599.0,0.00012657,2]
[406651413,1772035243668,-342.0,0.00012657,2]
[406651415,1772035272733,-300.0,0.00012657,2]
[406651416,1772035272761,-150.0,0.00012657,2]
[406651422,1772035704065,41435.707246,0.00011653,2]
[406651425,1772035806812,157.95,9.5e-05,2]
[406651445,1772035832310,-300.0,0.00012328,2]
[406651447,1772035832320,-300.0,0.00012328,2]
[406651450,1772035832329,-300.0,0.00012328,2]
[406651451,1772035832340,-300.0,0.00012328,2]
[406651453,1772035832350,-594.0,0.00012328,2]
[406651456,1772035832359,-1088.24,0.00012329,2]
[406651458,1772035832369,-1088.24,0.00012329,2]
[406651459,1772035832380,-799.99,0.00012329,2]
[406651461,1772035832389,-229.53,0.00012329,2]
[406651467,1772035832448,-305.668248,0.00012329,2]
[406651479,1772035838948,-131.451752,0.00012329,2]
[406651480,1772035838957,-555.55,0.00012329,2]
[406651481,1772035838967,-555.55,0.00012329,2]
[406651483,1772035838976,-370.36,0.00012329,2]
[406651485,1772035838985,-308.64,0.00012329,2]
[406651486,1772035838994,-257.2,0.00012329,2]
[406651487,1772035839003,-257.2,0.00012329,2]
[406651488,1772035839012,-171.46,0.00012329,2]
[406651489,1772035839022,-857.34,0.00012329,2]
[406651490,1772035839031,-1435.21783924,0.00012555,2]
[406651491,1772035839041,-150.0,0.00012625,2]
[406651492,1772035839050,-3280.0,0.0001265,2]
[406651493,1772035839060,-2422.55922865,0.00012655,2]
[406651494,1772035839070,-200.0,0.00012658,2]
[406651495,1772035839079,-66762.5900648,0.00012658,2]
[406651496,1772035839088,-222.25197336,0.000127,2]
[406651497,1772035839098,-208.80345114,0.000127,2]
[406651498,1772035839107,-3389.3594395,0.000129,2]
[406651499,1772035839117,-300.0,0.0001291,2]
[406651500,1772035839126,-300.0,0.0001291,2]
[406651501,1772035839137,-300.0,0.0001291,2]
[406651502,1772035839147,-300.0,0.0001291,2]
[406651503,1772035839156,-300.0,0.0001291,2]
[406651504,1772035839165,-300.0,0.0001291,2]
[406651505,1772035839174,-300.0,0.0001291,2]
[406651506,1772035839184,-300.0,0.0001291,2]
[406651507,1772035839193,-300.0,0.0001291,2]
[406651508,1772035839202,-300.0,0.0001291,2]
[406651509,1772035839212,-300.0,0.0001291,2]
[406651510,1772035839221,-300.0,0.0001291,2]
[406651511,1772035839232,-300.0,0.0001291,2]
[406651512,1772035839242,-300.0,0.0001291,2]
[406651513,1772035839251,-300.0,0.0001291,2]
[406651514,1772035839261,-600.0,0.0001291,2]
[406651515,1772035839271,-202.60460371,0.00013273,2]
[406651516,1772035839280,-500.0,0.00013273,2]
[406651517,1772035839289,-500.0,0.00013273,2]
[406651518,1772035839299,-500.0,0.00013273,2]
[406651519,1772035839308,-500.0,0.00013273,2]
[406651520,1772035839316,-500.0,0.00013273,2]
[406651521,1772035839326,-500.0,0.00013273,2]
[406651522,1772035839336,-1435.21783924,0.00013387,2]
[406651523,1772035839345,-500.0,0.00013387,2]
[406651524,1772035839354,-273.59,0.00013485,2]
[406651525,1772035839364,-420.0,0.00013529,2]
[406651526,1772035839373,-500.0,0.00013698,2]
[406651527,1772035839385,-500.0,0.00013698,2]
[406651528,1772035839394,-500.0,0.00013698,2]
[406651529,1772035839404,-155.19353918,0.00013698,2]
[406651530,1772035839414,-501.62619322,0.00013698,2]
[406651531,1772035839423,-500.0,0.00013698,2]
[406651532,1772035839432,-500.0,0.00013698,2]
[406651533,1772035839445,-426.19312835,0.00013698,2]
[406651534,1772035839462,-500.0,0.00013698,2]
[406651535,1772035839480,-500.0,0.00013698,2]
[406651536,1772035839497,-500.0,0.00013698,2]
[406651537,1772035839509,-1387.487467,0.00013699,2]
[406651538,1772035839521,-151.0,0.00013699,2]
[406651539,1772035839532,-151.0,0.00013699,2]
[406651540,1772035839542,-249.29798,0.00013699,2]
[406651541,1772035839551,-500.0,0.00013699,2]
[406651542,1772035839561,-500.0,0.00013699,2]
[406651543,1772035839573,-330.32261011,0.00013699,2]
[406651544,1772035839582,-500.0,0.00013699,2]
[406651545,1772035839596,-510.77474611,0.00013699,2]
[406651546,1772035839605,-500.0,0.00013699,2]
[406651547,1772035839615,-500.0,0.00013699,2]
[406651548,1772035839626,-500.0,0.00013699,2]
[406651549,1772035839637,-500.0,0.00013699,2]
[406651550,1772035839647,-500.0,0.00013699,2]
[406651551,1772035839656,-500.0,0.00013699,2]
[406651552,1772035839666,-150.0,0.000137,2]
[406651553,1772035839675,-1867.756386,0.00013812,2]
[406651554,1772035839685,-500.0,0.00013819,2]
[406651555,1772035839694,-500.0,0.00013819,2]
[406651556,1772035839703,-500.0,0.00013819,2]
[406651557,1772035839712,-271.84223459,0.00013819,2]
[406651558,1772035839721,-500.0,0.00013819,2]
[406651559,1772035839730,-500.0,0.00013819,2]
[406651560,1772035839740,-500.0,0.00013819,2]
[406651561,1772035839750,-500.0,0.00013819,2]
[406651562,1772035839759,-500.0,0.00013819,2]
[406651563,1772035839770,-500.0,0.00013819,2]
[406651564,1772035839780,-500.0,0.00013821,2]
[406651565,1772035839790,-1000.0,0.00013821,2]
[406651566,1772035839800,-1000.0,0.00013821,2]
[406651567,1772035839809,-1000.0,0.00013821,2]
[406651568,1772035839820,-151.0,0.00013821,2]
[406651569,1772035839830,-314.82,0.0001416,2]
[406651570,1772035839840,-150.0,0.000142,2]
[406651571,1772035839850,-720.0,0.00014201,2]
[406651572,1772035839860,-1435.21783924,0.00014219,2]
[406651573,1772035839871,-1000.0,0.00014247,2]
[406651574,1772035839881,-1000.0,0.00014247,2]
[406651575,1772035839891,-1000.0,0.00014247,2]
[406651576,1772035839901,-1000.0,0.00014247,2]
[406651577,1772035839911,-349.47268126,0.00014247,2]
[406651578,1772035839921,-1000.0,0.00014247,2]
[406651579,1772035839931,-843.25255061,0.00014247,2]
[406651580,1772035839941,-1000.0,0.00014247,2]
[406651581,1772035839950,-1000.0,0.00014247,2]
[406651582,1772035839960,-500.0,0.0001426,2]
[406651583,1772035839969,-500.0,0.0001426,2]
[406651584,1772035839979,-1500.0,0.00014368,2]
[406651585,1772035839989,-1500.0,0.00014368,2]
[406651586,1772035839998,-1500.0,0.00014368,2]
[406651587,1772035840008,-1867.756386,0.00014394,2]
[406651588,1772035840017,-177.0,0.00014625,2]
[406651589,1772035840027,-3389.35943948,0.00014669,2]
[406651590,1772035840036,-500.0,0.00014794,2]
[406651591,1772035840046,-183.26067836,0.00014795,2]
[406651592,1772035840056,-1500.0,0.00014795,2]
[406651593,1772035840066,-1500.0,0.00014795,2]
[406651594,1772035840075,-1500.0,0.00014795,2]
[406651595,1772035840085,-1500.0,0.00014795,2]
[406651597,1772035840101,-1500.0,0.00014795,2]
[406651598,1772035840121,-728.74126167,0.00014795,2]
[406651599,1772035840142,-150.01,0.000148,2]
[406651600,1772035840159,-587.0,0.00014847,2]
[406651601,1772035840172,-2000.0,0.00014916,2]
[406651602,1772035840183,-2000.0,0.00014916,2]
[406651603,1772035840193,-2000.0,0.00014916,2]
[406651604,1772035840203,-1867.756386,0.00014975,2]
[406651605,1772035840443,-151.0,0.00015025,2]
[406651606,1772035840454,-1435.21783924,0.0001505,2]
[406651607,1772035840465,-240.295833,0.00015068,2]
[406651612,1772035840477,-1218.93385887,0.00015191,2]
[406651615,1772035840489,-2000.0,0.00015342,2]
[406651616,1772035840500,-2000.0,0.00015342,2]
[406651618,1772035840512,-2000.0,0.00015342,2]
[406651621,1772035840523,-177.68974411,0.00015342,2]
[406651623,1772035840536,-2000.0,0.00015342,2]
[406651625,1772035840549,-334.12274905,0.00015372,2]
[406651627,1772035840561,-500.0,0.00015411,2]
[406651629,1772035840572,-6661.78173137,0.00015411,2]
[406651631,1772035840591,-585.27014751,0.00015411,2]
[406651633,1772035840602,-500.0,0.00015464,2]
[406651635,1772035840613,-2500.0,0.00015464,2]
[406651637,1772035840623,-2500.0,0.00015464,2]
[406651639,1772035840638,-2500.0,0.00015464,2]
[406651641,1772035840650,-1867.756386,0.00015557,2]
[406651643,1772035840664,-864.0,0.00015621,2]
[406651645,1772035840675,-1095.16,0.000157,2]
[406651646,1772035840686,-1435.21783924,0.00015882,2]
[406651648,1772035840695,-2500.0,0.0001589,2]
[406651650,1772035840705,-2500.0,0.0001589,2]
[406651653,1772035840717,-2500.0,0.0001589,2]
[406651655,1772035840727,-780.12456213,0.0001589,2]
[406651657,1772035840738,-500.0,0.00015981,2]
[406651659,1772035840748,-500.0,0.00015981,2]
[406651661,1772035840757,-500.0,0.00015981,2]
[406651662,1772035840769,-500.0,0.00015981,2]
[406651664,1772035840779,-500.0,0.00015981,2]
[406651666,1772035840788,-736.7712684,0.00015982,2]
[406651668,1772035840799,-91581.7742375,0.00015982,2]
[406651671,1772035840810,-1678.6331397,0.00015982,2]
[406651673,1772035840821,-736.7712684,0.00015982,2]
[406651675,1772035840835,-151.0,0.00015982,2]
[406651677,1772035840850,-2277.58201077,0.00016012,2]
[406651679,1772035840863,-1308.35087973,0.00016012,2]
[406651681,1772035840876,-3000.0,0.00016012,2]
[406651683,1772035840888,-1867.756386,0.00016138,2]
[406651685,1772035840898,-276.63789255,0.00016289,2]
[406651687,1772035840907,-823.0,0.00016293,2]
[406651689,1772035840918,-151.0,0.000163,2]
[406651691,1772035840929,-500.0,0.00016438,2]
[406651693,1772035840939,-170.187535,0.00016438,2]
[406651695,1772035840948,-3000.0,0.00016438,2]
[406651697,1772035840957,-3000.0,0.00016438,2]
[406651699,1772035840967,-3000.0,0.00016438,2]
[406651701,1772035840976,-598.1935738,0.00016501,2]
[406651703,1772035840987,-1075.67168441,0.00016501,2]
[406651705,1772035840997,-233.625017,0.00016501,2]
[406651707,1772035841007,-934.50006798,0.00016501,2]
[406651709,1772035841016,-406.36662256,0.00016501,2]
[406651711,1772035841026,-731.45992061,0.00016501,2]
[406651713,1772035841035,-2787.18755115,0.00016501,2]
[406651715,1772035841046,-4350.62556813,0.00016501,2]
[406651717,1772035841057,-170.13732198,0.00016501,2]
[406651719,1772035841067,-680.54928794,0.00016501,2]
[406651721,1772035841078,-1531.23589786,0.00016501,2]
[406651723,1772035841089,-2722.19715175,0.00016501,2]
[406651725,1772035841099,-462.99850297,0.00016501,2]
[406651727,1772035841108,-833.39730534,0.00016501,2]
[406651729,1772035841118,-1565.02872962,0.0001656,2]
[406651731,1772035841128,-204.0,0.00016625,2]
[406651733,1772035841139,-1867.756386,0.00016719,2]
[406651735,1772035841149,-3389.35943948,0.00016783,2]
[406651737,1772035841159,-630.5664025,0.00016832,2]
[406651739,1772035841169,-157.64160063,0.00016832,2]
[406651741,1772035841180,-3606.94859561,0.00016842,2]
[406651743,1772035841190,-505.77185677,0.00016986,2]
[406651745,1772035841200,-3500.0,0.00016986,2]
[406651747,1772035841209,-2309.46895902,0.00016986,2]
[406651749,1772035841218,-619.80744983,0.00016999,2]
[406651751,1772035841228,-1115.65340969,0.00016999,2]
[406651753,1772035841238,-634.17565899,0.00016999,2]
[406651755,1772035841248,-1141.51618619,0.00016999,2]
[406651757,1772035841258,-2029.36210877,0.00016999,2]
[406651759,1772035841267,-3170.87829496,0.00016999,2]
[406651761,1772035841278,-720.76319481,0.00016999,2]
[406651763,1772035841287,-1297.37375065,0.00016999,2]
[406651765,1772035841298,-1983.38383944,0.00016999,2]
[406651767,1772035841308,-193.93555236,0.00016999,2]
[406651769,1772035841318,-775.74220945,0.00016999,2]
[406651771,1772035841330,-1745.41997125,0.00016999,2]
[406651773,1772035841340,-151.0,0.00017,2]
[406651775,1772035841351,-4667.89,0.00017,2]
[406651777,1772035841362,-2044.08970457,0.00017072,2]
[406651779,1772035841372,-4566.06474474,0.00017144,2]
[406651781,1772035841384,-1000.0,0.00017183,2]
[406651783,1772035841395,-334.0,0.00017264,2]
[406651785,1772035841406,-500.0,0.00017299,2]
[406651787,1772035841416,-318.54906608,0.00017299,2]
[406651789,1772035841426,-32312.0043914,0.000173,2]
[406651791,1772035841436,-3102.96883778,0.00017369,2]
[406651793,1772035841446,-3099.03724913,0.00017409,2]
[406651795,1772035841457,-4000.0,0.00017534,2]
[406651797,1772035841466,-6214.92145812,0.00017537,2]
[406651799,1772035841476,-250.0,0.0001755,2]
[406651801,1772035841486,-250.0,0.0001755,2]
[406651803,1772035841496,-250.0,0.0001755,2]
[406651805,1772035841507,-250.0,0.0001755,2]
[406651807,1772035841517,-385.20316875,0.0001755,2]
[406651809,1772035841527,-170.07839991,0.0001755,2]
[406651811,1772035841537,-502.56984192,0.0001755,2]
[406651813,1772035841546,-250.0,0.0001755,2]
[406651816,1772035841558,-250.0,0.0001755,2]
[406651818,1772035841568,-403.21803119,0.0001755,2]
[406651820,1772035841580,-250.0,0.0001755,2]
[406651822,1772035841593,-250.0,0.0001755,2]
[406651824,1772035841603,-250.0,0.0001755,2]
[406651826,1772035841612,-250.0,0.0001755,2]
[406651828,1772035841623,-250.0,0.0001755,2]
[406651830,1772035841634,-250.0,0.0001755,2]
[406651832,1772035841644,-209.40437684,0.0001755,2]
[406651834,1772035841655,-250.0,0.0001755,2]
[406651836,1772035841664,-250.0,0.0001755,2]
[406651838,1772035841675,-217.15233878,0.0001755,2]
[406651840,1772035841684,-250.0,0.0001755,2]
[406651842,1772035841694,-250.0,0.0001755,2]
[406651844,1772035841703,-225.18697532,0.0001755,2]
[406651846,1772035841713,-250.0,0.0001755,2]
[406651848,1772035841722,-250.0,0.0001755,2]
[406651850,1772035841732,-233.51889341,0.0001755,2]
[406651852,1772035841742,-250.0,0.0001755,2]
[406651854,1772035841751,-242.15909246,0.0001755,2]
[406651856,1772035841760,-250.0,0.0001755,2]
[406651858,1772035841769,-250.0,0.0001755,2]
[406651860,1772035841778,-251.11897888,0.0001755,2]
[406651862,1772035841787,-250.0,0.0001755,2]
[406651864,1772035841798,-250.0,0.0001755,2]
[406651866,1772035841807,-260.4103811,0.0001755,2]
[406651868,1772035841816,-250.0,0.0001755,2]
[406651870,1772035841825,-270.0455652,0.0001755,2]
[406651872,1772035841834,-250.0,0.0001755,2]
[406651874,1772035841843,-280.03725112,0.0001755,2]
[406651876,1772035841852,-250.0,0.0001755,2]
[406651878,1772035841861,-290.39862941,0.0001755,2]
[406651880,1772035841870,-250.0,0.0001755,2]
[406651882,1772035841880,-301.1433787,0.0001755,2]
[406651884,1772035841892,-500.0,0.0001755,2]
[406651886,1772035841901,-500.0,0.0001755,2]
[406651888,1772035841911,-500.0,0.0001755,2]
[406651890,1772035841920,-500.0,0.0001755,2]
[406651892,1772035841929,-500.0,0.0001755,2]
[406651894,1772035841939,-500.0,0.0001755,2]
[406651896,1772035841948,-500.0,0.0001755,2]
[406651898,1772035841958,-500.0,0.0001755,2]
[406651900,1772035841967,-500.0,0.0001755,2]
[406651902,1772035841976,-500.0,0.0001755,2]
[406651904,1772035841986,-500.0,0.0001755,2]
[406651906,1772035841996,-500.0,0.0001755,2]
[406651908,1772035842006,-500.0,0.0001755,2]
[406651910,1772035842016,-500.0,0.0001755,2]
[406651912,1772035842026,-500.0,0.0001755,2]
[406651914,1772035842038,-500.0,0.0001755,2]
[406651916,1772035842047,-500.0,0.0001755,2]
[406651918,1772035842057,-500.0,0.0001755,2]
[406651920,1772035842067,-500.0,0.0001755,2]
[406651922,1772035842076,-500.0,0.0001755,2]
[406651924,1772035842086,-500.0,0.0001755,2]
[406651926,1772035842095,-500.0,0.0001755,2]
[406651928,1772035842104,-250.0,0.0001755,2]
[406651930,1772035842113,-500.0,0.0001755,2]
[406651932,1772035842122,-500.0,0.0001755,2]
[406651934,1772035842131,-500.0,0.0001755,2]
[406651936,1772035842141,-250.0,0.0001755,2]
[406651938,1772035842151,-500.0,0.0001755,2]
[406651940,1772035842160,-500.0,0.0001755,2]
[406651942,1772035842170,-250.0,0.0001755,2]
[406651944,1772035842179,-500.0,0.0001755,2]
[406651946,1772035842189,-500.0,0.0001755,2]
[406651948,1772035842199,-500.0,0.0001755,2]
[406651950,1772035842208,-250.0,0.0001755,2]
[406651952,1772035842218,-500.0,0.0001755,2]
[406651954,1772035842227,-500.0,0.0001755,2]
[406651956,1772035842237,-250.0,0.0001755,2]
[406651958,1772035842247,-500.0,0.0001755,2]
[406651960,1772035842257,-250.0,0.0001755,2]
[406651962,1772035842267,-487.0,0.0001755,2]
[406651964,1772035842276,-487.0,0.0001755,2]
[406651966,1772035842287,-487.0,0.0001755,2]
[406651968,1772035842298,-487.0,0.0001755,2]
[406651970,1772035842309,-54.52692166,0.0001755,2]
[406651973,1772035842324,-432.47307834,0.0001755,2]
[406651975,1772035842334,-487.0,0.0001755,2]
[406651977,1772035842344,-487.0,0.0001755,2]
[406651979,1772035842354,-487.0,0.0001755,2]
[406651981,1772035842364,-487.0,0.0001755,2]
[406651983,1772035842374,-487.0,0.0001755,2]
[406651985,1772035842387,-487.0,0.0001755,2]
[406651987,1772035842396,-921.2,0.0001755,2]
[406651989,1772035842407,-151.0,0.000176,2]
[406651991,1772035842417,-480.38773266,0.00017695,2]
[406651993,1772035842427,-1919.62937971,0.00017695,2]
[406651995,1772035842437,-307.83531651,0.00017728,2]
[406651998,1772035842447,-150.0,0.00017808,2]
[406652000,1772035842457,-1152.0,0.0001788,2]
[406652002,1772035842467,-8117.4484351,0.00017929,2]
[406652004,1772035842476,-4462.61363875,0.00017958,2]
[406652006,1772035842487,-480159.03589701,0.00018,2]
[406652008,1772035842496,-1087.5784531,0.0001805,2]
[406652010,1772035842507,-4500.0,0.00018082,2]
[406652012,1772035842517,-151.0,0.000182,2]
[406652014,1772035842526,-250.0,0.00018356,2]
[406652015,1772035842535,-675.0,0.00018424,2]
[406652018,1772035842545,-675.0,0.0001846,2]
[406652020,1772035842555,-200.0,0.00018507,7]
[406652022,1772035842565,-173.48000028,0.00018507,7]
[406652024,1772035842577,-1145.0,0.00018507,7]
[406652026,1772035842588,-150.0,0.00018507,7]
[406652028,1772035842597,-1145.0,0.00018562,7]
[406652030,1772035842606,-150.0,0.00018562,7]
[406652032,1772035842618,-675.0,0.00018568,2]
[406652034,1772035842627,-151.0,0.000186,2]
[406652036,1772035842639,-1145.0,0.00018617,7]
[406652038,1772035842650,-234.80805163,0.00018617,7]
[406652040,1772035842660,-31304.91597138,0.00018622,2]
[406652042,1772035842669,-231.0,0.00018625,2]
[406652044,1772035842679,-534.91233724,0.00018626,2]
[406652046,1772035842689,-609.45854706,0.00018626,2]
[406652048,1772035842698,-5000.0,0.0001863,2]
[406652050,1772035842708,-1145.0,0.00018671,7]
[406652052,1772035842717,-1145.0,0.00018726,7]
[406652054,1772035842727,-800.0,0.00018761,5]
[406652056,1772035842737,-1145.0,0.00018781,7]
[406652058,1772035842747,-500.0,0.0001879,2]
[406652060,1772035842757,-500.0,0.0001879,2]
[406652062,1772035842766,-87376.70698773,0.0001881,2]
[406652064,1772035842776,-1000.0,0.00018832,5]
[406652066,1772035842785,-1145.0,0.00018836,7]
[406652068,1772035842796,-506.807,0.00018836,2]
[406652070,1772035842806,-500.0,0.00018869,2]
[406652073,1772035842818,-500.0,0.00018869,2]
[406652075,1772035842828,-5030.52733624,0.00018873,2]
[406652076,1772035842838,-5000.0,0.00018873,2]
[406652079,1772035842848,-5000.0,0.00018873,2]
[406652081,1772035842857,-1145.0,0.00018891,7]
[406652082,1772035842867,-3389.35943948,0.00018897,2]
[406652083,1772035842877,-1000.0,0.00018901,2]
[406652084,1772035842887,-244.0,0.00018901,2]
[406652085,1772035842897,-350.0,0.00018904,2]
[406652086,1772035842907,-1145.0,0.00018945,7]
[406652087,1772035842916,-355.0,0.00018975,2]
[406652088,1772035842926,-500.0,0.00019,7]
[406652089,1772035842936,-500.0,0.00019,7]
[406652091,1772035842995,-500.0,0.00019,7]
[406652093,1772035843005,-500.0,0.00019,7]
[406652095,1772035843014,-500.0,0.00019,7]
[406652097,1772035843023,-500.0,0.00019,7]
[406652099,1772035843032,-500.0,0.00019,7]
[406652101,1772035843041,-500.0,0.00019,7]
[406652103,1772035843052,-500.0,0.00019,7]
[406652105,1772035843060,-500.0,0.00019,7]
[406652107,1772035843070,-500.0,0.00019,7]
[406652109,1772035843079,-500.0,0.00019,7]
[406652111,1772035843088,-500.0,0.00019,7]
[406652113,1772035843097,-500.0,0.00019,7]
[406652115,1772035843106,-500.0,0.00019,7]
[406652117,1772035843115,-500.0,0.00019,7]
[406652119,1772035843124,-500.0,0.00019,7]
[406652121,1772035843132,-500.0,0.00019,7]
[406652123,1772035843142,-500.0,0.00019,7]
[406652125,1772035843151,-500.0,0.00019,7]
[406652127,1772035843160,-500.0,0.00019,7]
[406652129,1772035843169,-500.0,0.00019,7]
[406652131,1772035843178,-500.0,0.00019,7]
[406652133,1772035843187,-500.0,0.00019,7]
[406652135,1772035843197,-500.0,0.00019,7]
[406652137,1772035843207,-500.0,0.00019,7]
[406652139,1772035843215,-500.0,0.00019,7]
[406652141,1772035843224,-500.0,0.00019,7]
[406652143,1772035843235,-500.0,0.00019,7]
[406652145,1772035843245,-500.0,0.00019,7]
[406652147,1772035843254,-500.0,0.00019,7]
[406652149,1772035843263,-500.0,0.00019,7]
[406652151,1772035843273,-500.0,0.00019,7]
[406652153,1772035843282,-500.0,0.00019,7]
[406652155,1772035843291,-500.0,0.00019,7]
[406652157,1772035843301,-500.0,0.00019,7]
[406652159,1772035843311,-500.0,0.00019,7]
[406652161,1772035843320,-500.0,0.00019,7]
[406652163,1772035843330,-500.0,0.00019,7]
[406652165,1772035843339,-500.0,0.00019,7]
[406652167,1772035843348,-500.0,0.00019,7]
[406652169,1772035843357,-500.0,0.00019,7]
[406652171,1772035843367,-500.0,0.00019,7]
[406652173,1772035843376,-500.0,0.00019,7]
[406652175,1772035843386,-500.0,0.00019,7]
[406652177,1772035843396,-500.0,0.00019,7]
[406652179,1772035843405,-500.0,0.00019,7]
[406652181,1772035843413,-500.0,0.00019,7]
[406652183,1772035843423,-500.0,0.00019,7]
[406652184,1772035843433,-500.0,0.00019,7]
[406652187,1772035843443,-500.0,0.00019,7]
[406652188,1772035843452,-500.0,0.00019,7]
[406652190,1772035843462,-500.0,0.00019,7]
[406652192,1772035843471,-500.0,0.00019,7]
[406652195,1772035843480,-500.0,0.00019,7]
[406652198,1772035843489,-500.0,0.00019,7]
[406652200,1772035843498,-500.0,0.00019,7]
[406652202,1772035843507,-500.0,0.00019,7]
[406652204,1772035843517,-500.0,0.00019,7]
[406652206,1772035843526,-500.0,0.00019,7]
[406652208,1772035843535,-500.0,0.00019,7]
[406652210,1772035843544,-500.0,0.00019,7]
[406652212,1772035843554,-500.0,0.00019,7]
[406652214,1772035843563,-500.0,0.00019,7]
[406652216,1772035843573,-500.0,0.00019,7]
[406652218,1772035843582,-500.0,0.00019,7]
[406652220,1772035843595,-500.0,0.00019,7]
[406652222,1772035843605,-500.0,0.00019,7]
[406652224,1772035843615,-500.0,0.00019,7]
[406652226,1772035843625,-500.0,0.00019,7]
[406652228,1772035843635,-500.0,0.00019,7]
[406652230,1772035843645,-500.0,0.00019,7]
[406652232,1772035843654,-500.0,0.00019,7]
[406652234,1772035843666,-500.0,0.00019,7]
[406652236,1772035843675,-500.0,0.00019,7]
[406652238,1772035843685,-500.0,0.00019,7]
[406652240,1772035843694,-500.0,0.00019,7]
[406652242,1772035843702,-500.0,0.00019,7]
[406652244,1772035843712,-500.0,0.00019,7]
[406652246,1772035843721,-500.0,0.00019,7]
[406652248,1772035843730,-500.0,0.00019,7]
[406652250,1772035843739,-500.0,0.00019,7]
[406652252,1772035843748,-500.0,0.00019,7]
[406652254,1772035843758,-500.0,0.00019,7]
[406652256,1772035843766,-500.0,0.00019,7]
[406652259,1772035843776,-500.0,0.00019,7]
[406652261,1772035843785,-151.52,0.00019,7]
[406652264,1772035843795,-500.0,0.00019,7]
[406652266,1772035843804,-500.0,0.00019,7]
[406652268,1772035843813,-500.0,0.00019,7]
[406652270,1772035843821,-500.0,0.00019,7]
[406652272,1772035843830,-500.0,0.00019,7]
[406652274,1772035843840,-817277.23570428,0.00019,2]
[406652276,1772035843850,-1050.30544555,0.00019,2]
[406652278,1772035843859,-500.0,0.00019,7]
[406652280,1772035843869,-500.0,0.00019,7]
[406652282,1772035843878,-500.0,0.00019,7]
[406652284,1772035843889,-500.0,0.00019,7]
[406652286,1772035843898,-500.0,0.00019,7]
[406652288,1772035843907,-500.0,0.00019,7]
[406652290,1772035843916,-500.0,0.00019,7]
[406652292,1772035843926,-500.0,0.00019,7]
[406652294,1772035843935,-1145.0,0.00019,7]
[406652296,1772035843945,-1145.0,0.00019055,7]
[406652298,1772035843954,-1145.0,0.0001911,7]
[406652300,1772035843964,-1145.0,0.00019165,7]
[406652302,1772035843974,-2024.34,0.00019178,2]
[406652304,1772035843983,-1279.27,0.00019178,2]
[406652306,1772035843992,-805.19,0.00019178,2]
[406652308,1772035844002,-226.224234,0.00019178,2]
[406652310,1772035844012,-5398.42138375,0.00019178,2]
[406652312,1772035844022,-355.0,0.00019186,2]
[406652314,1772035844031,-1145.0,0.00019219,7]
[406652316,1772035844041,-1145.0,0.00019274,7]
[406652318,1772035844050,-1145.0,0.00019329,7]